fUSD/lending_fUSD_20240607
["ID","MTS","AMOUNT","RATE_DAILY","PERIOD"]
[328778047,1717785033833,-188.20708037,0.00015452,2]
[328778048,1717785033991,-446.85642468,0.00015452,2]
[328778049,1717785034009,-1753.7,0.00015483,2]
[328778050,1717785034018,-19362.76982329,0.00015552,2]
[328778051,1717785034031,-2097.38805233,0.00015552,2]
[328778052,1717785034387,-155.0,0.0001458,2]
[328778053,1717785034398,-472.44372054,0.00015552,2]
[328778054,1717785034411,-621.28822806,0.00015552,2]
[328778055,1717785034421,-419.7,0.00015552,2]
[328778056,1717785034432,-345.5,0.00015552,2]
[328778057,1717785034443,-286.18192272,0.00015552,2]
[328778058,1717785034455,-294.72825306,0.00015552,2]
[328778059,1717785034464,-250.0,0.00015596,2]
[328778060,1717785034474,-171.91,0.00015679,2]
[328778061,1717785034484,-204.35,0.00015742,2]
[328778062,1717785034493,-204.35,0.0001653,2]
[328778063,1717785034502,-155.78489137,0.00016792,2]
[328778064,1717785034511,-14.83551246,0.00016935,2]
[328778065,1717785034523,-141.61298754,0.00016935,2]
[328778066,1717785034532,-2930.30701149,0.00016962,2]
[328778067,1717785034543,-1011.27340961,0.00016962,2]
[328778068,1717785034554,-334.50747262,0.00016962,2]
[328778069,1717785034566,-12787.97511185,0.00016962,2]
[328778070,1717785034576,-1046.53950054,0.00016962,2]
[328778071,1717785034585,-254.35726645,0.00016962,2]
[328778072,1717785034595,-152.38,0.00017013,2]
[328778073,1717785034604,-735.84553311,0.00017022,2]
[328778074,1717785034617,-291.71677204,0.00017022,2]
[328778075,1717785034626,-48407.10065601,0.00017023,2]
[328778076,1717785034638,-484231.16165325,0.00017023,2]
[328778077,1717785034649,-687.05637,0.00017023,2]
[328778078,1717785034661,-745.15471852,0.00017023,2]
[328778079,1717785034672,-1245.30640348,0.00017023,2]
[328778080,1717785034696,-14629.05260855,0.00017023,2]
[328778081,1717785034708,-434.33736611,0.00017023,2]
[328778082,1717785034719,-754.74831959,0.00017023,2]
[328778083,1717785034731,-540.396828,0.00017023,2]
[328778084,1717785034742,-399.20391486,0.00017023,2]
[328778085,1717785034754,-2171.93496323,0.00017023,2]
[328778086,1717785034765,-1173.210827,0.00017023,2]
[328778087,1717785034778,-4698.92261733,0.00017023,2]
[328778088,1717785034789,-642.00000005,0.00017023,2]
[328778089,1717785034801,-1654.493151,0.00017023,2]
[328778101,1717785039591,-155.0,0.0001458,2]
[328778104,1717785039602,-155.0,0.0001458,2]
[328778107,1717785039613,-6613.05134,0.00017023,2]
[328778110,1717785039630,-1573.90273992,0.00017023,2]
[328778113,1717785039645,-669.38594706,0.00017023,2]
[328778118,1717785039657,-1275.69235238,0.00017023,2]
[328778121,1717785039670,-351.92,0.00017023,2]
[328778124,1717785039683,-1772.17215238,0.00017023,2]
[328778127,1717785039695,-3645.4670164,0.00017023,2]
[328778130,1717785039708,-9403.33171397,0.00017023,2]
[328778132,1717785039721,-297.69332182,0.00017023,2]
[328778134,1717785039733,-1603.2000001,0.00017023,2]
[328778136,1717785039746,-2995.42509698,0.00017023,2]
[328778139,1717785039759,-4463.884425,0.00017023,2]
[328778141,1717785039771,-8166.6292716,0.00017023,2]
[328778143,1717785039784,-7047.39002976,0.00017023,2]
[328778145,1717785039796,-15571.0,0.00017023,2]
[328778147,1717785039808,-275.816,0.00017023,2]
[328778150,1717785039820,-686.168246,0.00017023,2]
[328778152,1717785039832,-4265.10995084,0.00017023,2]
[328778154,1717785039844,-1771.34410047,0.00017023,2]
[328778156,1717785039856,-1019.00622617,0.00017023,2]
[328778183,1717785040587,-688.35,0.00017023,2]
[328778339,1717785043794,-268.60222202,0.00017022,2]
[328778345,1717785043804,-184.16496742,0.00017023,2]
[328778350,1717785043816,-22757.93807629,0.00017023,2]
[328778356,1717785043827,-647.526547,0.00017023,2]
[328778360,1717785043839,-739.70005,0.00017023,2]
[328778363,1717785043851,-4738.97256313,0.00017023,2]
[328778366,1717785043862,-3018.77743687,0.00017023,2]
[328778368,1717785043874,-22305.35258051,0.00017023,2]
[328778369,1717785043889,-1000.0,0.00017024,2]
[328778371,1717785043898,-640.81556102,0.00017038,2]
[328778373,1717785043908,-1123.302561,0.00017047,2]
[328778375,1717785043918,-204.35,0.00017317,2]
[328778377,1717785043928,-2934.51,0.00017321,2]
[328778378,1717785043938,-499.99,0.00017808,2]
[328778380,1717785043947,-204.35,0.00018104,2]
[328778382,1717785043957,-428.12123544,0.000185,2]
[328778384,1717785043966,-1405.11,0.00018862,2]
[328778386,1717785043976,-204.35,0.00018891,2]
[328778388,1717785043986,-2200.0,0.000189,6]
[328778390,1717785043996,-361.81640691,0.00019178,2]
[328778391,1717785044006,-500.0,0.00019178,2]
[328778392,1717785044015,-500.0,0.00019178,2]
[328778393,1717785044025,-356.16692428,0.00019178,2]
[328778394,1717785044036,-500.0,0.00019178,2]
[328778395,1717785044046,-225.62819604,0.00019178,2]
[328778396,1717785044055,-500.0,0.00019178,2]
[328778397,1717785044065,-500.0,0.00019178,2]
[328778398,1717785044076,-500.0,0.00019178,2]
[328778399,1717785044085,-500.0,0.00019178,2]
[328778400,1717785044095,-500.0,0.00019178,2]
[328778401,1717785044105,-500.0,0.00019178,2]
[328778402,1717785044115,-542.31214356,0.00019178,2]
[328778403,1717785044125,-384.92611895,0.00019178,2]
[328778404,1717785044138,-751.9144439,0.00019267,2]
[328778405,1717785044148,-173.78407402,0.00019349,2]
[328778406,1717785044157,-1718.50720832,0.00019351,2]
[328778407,1717785044167,-14655.78368692,0.00019451,2]
[328778408,1717785044178,-6994.81339409,0.0002,2]
[328778409,1717785044187,-155.0,0.0002,2]
[328778410,1717785044197,-155.0,0.0002,4]
[328778411,1717785044207,-1980.08690757,0.0002,2]
[328778412,1717785044218,-497.71766581,0.0002,10]
[328778413,1717785044227,-6259.73033977,0.0002,2]
[328778414,1717785044237,-2934.51,0.00020061,2]
[328778415,1717785044247,-226.6238354,0.000201,2]
[328778416,1717785044257,-1718.50720828,0.00020858,2]
[328778417,1717785044267,-167.03,0.00021184,2]
[328778418,1717785044277,-150.0,0.00021457,2]
[328778419,1717785044288,-1852.42,0.00021667,2]
[328778420,1717785044298,-1753.7,0.00021676,2]
[328778421,1717785044307,-1877.92,0.0002192,2]
[328778422,1717785044317,-1877.92,0.0002192,2]
[328778423,1717785044326,-1877.92,0.0002192,2]
[328778424,1717785044337,-1877.92,0.0002192,2]
[328778425,1717785044347,-1877.92,0.0002192,2]
[328778426,1717785044357,-790.20472017,0.00022,2]
[328778427,1717785044372,-554.25,0.0002225,2]
[328778428,1717785044386,-1718.50720828,0.00022365,2]
[328778429,1717785044396,-150.0,0.00022827,2]
[328778430,1717785044411,-446.79515573,0.00023178,2]
[328778431,1717785044421,-947.59015138,0.00023178,2]
[328778432,1717785044431,-1667.77,0.00023444,2]
[328778433,1717785044442,-896.16003082,0.00023512,2]
[328778434,1717785044451,-160.35,0.00023629,2]
[328778435,1717785044462,-1718.50720828,0.00023872,2]
[328778436,1717785044472,-527.49,0.00023935,2]
[328778437,1717785044482,-527.49,0.00023941,2]
[328778438,1717785044493,-527.49,0.00023947,2]
[328778439,1717785044503,-527.49,0.00023953,2]
[328778440,1717785044513,-527.49,0.0002396,2]
[328778441,1717785044523,-527.49,0.00023966,2]
[328778442,1717785044533,-527.49,0.00023972,2]
[328778443,1717785044543,-527.49,0.00023979,2]
[328778444,1717785044554,-527.49,0.00023985,2]
[328778445,1717785044564,-527.49,0.00023991,2]
[328778446,1717785044576,-527.49,0.00023998,2]
[328778447,1717785044586,-527.49,0.00024004,2]
[328778448,1717785044596,-527.49,0.0002401,2]
[328778449,1717785044605,-527.49,0.00024016,2]
[328778450,1717785044615,-527.49,0.00024023,2]
[328778451,1717785044629,-527.49,0.00024029,2]
[328778452,1717785044639,-527.49,0.00024035,2]
[328778453,1717785044648,-527.49,0.00024042,2]
[328778454,1717785044659,-527.49,0.00024048,2]
[328778455,1717785044669,-527.49,0.00024054,2]
[328778456,1717785044678,-151.0,0.00024134,7]
[328778457,1717785044689,-153.78,0.00024384,2]
[328778458,1717785044698,-161.49,0.00024384,2]
[328778459,1717785044707,-554.25,0.00024514,2]
[328778460,1717785044718,-151.0,0.00024627,4]
[328778461,1717785044727,-173.88445557,0.00024698,2]
[328778462,1717785044737,-16360.68558095,0.00024798,2]
[328778463,1717785044747,-16360.68558093,0.00024798,2]
[328778464,1717785044756,-16360.68558093,0.00024798,2]
[328778465,1717785044766,-16360.68558093,0.00024798,2]
[328778466,1717785044775,-16360.68558093,0.00024798,2]
[328778467,1717785044785,-1707.54972668,0.00024799,2]
[328778468,1717785044795,-1707.54972663,0.00024799,2]
[328778469,1717785044804,-160.35,0.0002486,2]
[328778470,1717785044814,-1250.0,0.00025,2]
[328778471,1717785044823,-1276.38374304,0.00025,2]
[328778472,1717785044832,-225.09872018,0.00025,2]
[328778473,1717785044842,-578.37296242,0.00025,14]
[328778474,1717785044852,-842.92918718,0.00025,2]
[328778475,1717785044863,-151.0,0.00025129,2]
[328778476,1717785044873,-1553.22,0.00025194,2]
[328778477,1717785044892,-16360.68558093,0.00025212,2]
[328778478,1717785044903,-1707.54972663,0.00025266,2]
[328778479,1717785044912,-1718.50720828,0.00025379,2]
[328778480,1717785044923,-1335.97512208,0.000258,2]
[328778481,1717785044933,-391.29,0.00025861,2]
[328778482,1717785044944,-250.0,0.00025861,2]
[328778483,1717785044954,-1707.54972663,0.00025928,2]
[328778484,1717785044963,-1500.0,0.00026,2]
[328778485,1717785044973,-23543.53052793,0.00026,5]
[328778486,1717785045121,-16360.68558093,0.00026384,2]
[328778487,1717785045137,-250.0,0.00026563,2]
[328778488,1717785045147,-1707.54972663,0.0002659,2]
[328778489,1717785045156,-166.56,0.00026652,2]
[328778490,1717785045166,-151.0,0.00026725,7]
[328778491,1717785045175,-554.25,0.00026778,2]
[328778492,1717785045185,-1718.50720828,0.00026886,2]
[328778493,1717785045194,-1300.0,0.00027,2]
[328778494,1717785045204,-150.0,0.00027,11]
[328778495,1717785045213,-2011.37343874,0.000272,2]
[328778496,1717785045222,-1707.54972663,0.00027252,2]
[328778497,1717785045232,-151.0,0.0002738,7]
[328778498,1717785045242,-500.0,0.00027397,2]
[328778499,1717785045253,-500.0,0.00027397,2]
[328778500,1717785045262,-170.46255162,0.00027397,2]
[328778501,1717785045272,-965.06,0.00027397,10]
[328778513,1717785045282,-804.22,0.00027397,10]
[328778525,1717785045292,-670.18,0.00027397,10]
[328778535,1717785045302,-1000.0,0.000274,2]
[328778543,1717785045312,-159.18,0.000274,2]
[328778550,1717785045323,-16360.68558093,0.00027556,2]
[328778556,1717785045333,-167.0,0.0002762,2]
[328778561,1717785045343,-189.769808,0.00027869,2]
[328778567,1717785045353,-1707.54972663,0.00027914,2]
[328778573,1717785045371,-1000.0,0.00027915,2]
[328778578,1717785045385,-151.0,0.00027921,2]
[328778583,1717785045395,-250.49088,0.00027921,2]
[328778587,1717785045406,-600.0,0.00027965,7]
[328778590,1717785045416,-166.56,0.00027985,2]
[328778593,1717785045427,-4302.931742,0.00027992,2]
[328778595,1717785045436,-177.973043,0.00027992,2]
[328778597,1717785045445,-417.452101,0.00027992,2]
[328778599,1717785045457,-186.101953,0.00027992,2]
[328778601,1717785045467,-161.564665,0.00027992,2]
[328778603,1717785045477,-390.068458,0.00027992,2]
[328778605,1717785045487,-180.851124,0.00027992,2]
[328778607,1717785045497,-194.252344,0.00027992,2]
[328778609,1717785045508,-1313.011285,0.00027992,2]
[328778611,1717785045517,-328.252821,0.00027992,2]
[328778613,1717785045527,-150.597011,0.00027992,2]
[328778615,1717785045536,-468.40220737,0.00028,2]
[328778617,1717785045545,-151.0,0.00028035,7]
[328778619,1717785045556,-3037.0,0.000283,2]
[328778621,1717785045565,-4302.931742,0.00028342,2]
[328778623,1717785045575,-417.452101,0.00028342,2]
[328778625,1717785045585,-390.068458,0.00028342,2]
[328778627,1717785045596,-194.252344,0.00028342,2]
[328778629,1717785045606,-1313.011285,0.00028342,2]
[328778631,1717785045615,-328.252821,0.00028342,2]
[328778633,1717785045624,-302.0,0.0002839,4]
[328778634,1717785045638,-1718.50720828,0.00028393,2]
[328778636,1717785045648,-845.0,0.000284,2]
[328778638,1717785045657,-180.28170636,0.00028497,2]
[328778640,1717785045667,-1409.71104985,0.00028497,2]
[328778642,1717785045676,-315.37356774,0.00028498,7]
[328778645,1717785045686,-1707.54972663,0.00028576,2]
[328778647,1717785045696,-795.0,0.00028612,8]
[328778648,1717785045705,-151.0,0.0002869,7]
[328778650,1717785045714,-4302.931742,0.00028692,2]
[328778652,1717785045724,-417.452101,0.00028692,2]
[328778654,1717785045733,-390.068458,0.00028692,2]
[328778655,1717785045743,-194.252344,0.00028692,2]
[328778656,1717785045752,-1313.011285,0.00028692,2]
[328778657,1717785045761,-328.252821,0.00028692,2]
[328778658,1717785045771,-249.88522402,0.000287,2]
[328778659,1717785045780,-16360.68558093,0.00028728,2]
[328778660,1717785045790,-164.73,0.0002878,2]
[328778661,1717785045799,-164.73,0.00028788,2]
[328778662,1717785045808,-164.73,0.00028795,2]
[328778663,1717785045818,-1071.84695952,0.00028799,15]
[328778664,1717785045828,-1000.0,0.000288,8]
[328778665,1717785045838,-500.0,0.000288,8]
[328778666,1717785045847,-164.73,0.00028803,2]
[328778667,1717785045857,-164.73,0.0002881,2]
[328778668,1717785045866,-164.73,0.00028818,2]
[328778669,1717785045880,-1000.0,0.00028823,2]
[328778670,1717785045890,-1000.0,0.00028823,2]
[328778671,1717785045899,-1000.0,0.00028823,2]
[328778672,1717785045908,-1000.0,0.00028823,2]
[328778673,1717785045918,-1000.0,0.00028823,2]
[328778674,1717785045927,-1000.0,0.00028823,2]
[328778675,1717785045936,-1000.0,0.00028823,2]
[328778676,1717785045945,-1000.0,0.00028823,2]
[328778677,1717785045955,-666.0,0.00028823,2]
[328778678,1717785045964,-164.73,0.00028826,2]
[328778679,1717785045974,-164.73,0.00028833,2]
[328778680,1717785045983,-164.73,0.00028841,2]
[328778681,1717785045993,-164.73,0.00028848,2]
[328778682,1717785046003,-164.73,0.00028856,2]
[328778683,1717785046012,-164.73,0.00028863,2]
[328778684,1717785046021,-604.0,0.00028868,7]
[328778685,1717785046031,-164.73,0.00028871,2]
[328778686,1717785046040,-164.73,0.00028878,2]
[328778687,1717785046050,-164.73,0.00028886,2]
[328778688,1717785046059,-164.73,0.00028894,2]
[328778689,1717785046069,-1000.0,0.000289,2]
[328778690,1717785046078,-770.6784,0.000289,2]
[328778691,1717785046087,-211.43132248,0.000289,2]
[328778692,1717785046097,-192.05306906,0.000289,2]
[328778693,1717785046106,-4400.0,0.000289,10]
[328778694,1717785046115,-188.20708037,0.000289,2]
[328778695,1717785046125,-164.73,0.00028901,2]
[328778696,1717785046138,-164.73,0.00028909,2]
[328778697,1717785046148,-164.73,0.00028916,2]
[328778698,1717785046157,-164.73,0.00028924,2]
[328778699,1717785046167,-625.35569721,0.00028928,2]
[328778700,1717785046179,-265.97843345,0.0002899,2]
[328778701,1717785046189,-299.29433227,0.00028997,2]
[328778702,1717785046199,-1624.71052526,0.00028997,2]
[328778703,1717785046209,-1350.0,0.00029,2]
[328778706,1717785046219,-130764.5753058,0.00029,2]
[328778708,1717785046228,-155.0,0.00029,7]
[328778710,1717785046238,-27309.64478769,0.00029,2]
[328778712,1717785046248,-4168.40235176,0.00029,2]
[328778715,1717785046257,-10000.0,0.00029,2]
[328778718,1717785046267,-12265.87792239,0.00029,2]
[328778721,1717785046276,-415.17732812,0.00029,2]
[328778723,1717785046285,-415.17732812,0.00029,2]
[328778725,1717785046295,-415.17732812,0.00029,2]
[328778727,1717785046304,-415.17732812,0.00029,2]
[328778728,1717785046313,-415.17732812,0.00029,2]
[328778729,1717785046322,-415.17732812,0.00029,2]
[328778730,1717785046332,-415.17732812,0.00029,2]
[328778731,1717785046341,-415.17732812,0.00029,2]
[328778732,1717785046350,-415.17732812,0.00029,2]
[328778733,1717785046361,-415.17732812,0.00029,2]
[328778734,1717785046370,-415.17732812,0.00029,2]
[328778735,1717785046383,-415.17732812,0.00029,2]
[328778736,1717785046392,-415.17732812,0.00029,2]
[328778737,1717785046406,-415.17732812,0.00029,2]
[328778738,1717785046415,-415.17732812,0.00029,2]
[328778739,1717785046424,-415.17732812,0.00029,2]
[328778740,1717785046433,-415.17732812,0.00029,2]
[328778741,1717785046444,-415.17732812,0.00029,2]
[328778742,1717785046455,-415.17732812,0.00029,2]
[328778743,1717785046465,-415.17732812,0.00029,2]
[328778744,1717785046474,-415.17732812,0.00029,2]
[328778745,1717785046483,-415.17732812,0.00029,2]
[328778746,1717785046493,-415.17732812,0.00029,2]
[328778747,1717785046503,-415.17732812,0.00029,2]
[328778748,1717785046512,-415.17732812,0.00029,2]
[328778749,1717785046521,-415.17732812,0.00029,2]
[328778750,1717785046531,-415.17732812,0.00029,2]
[328778751,1717785046540,-415.17732812,0.00029,2]
[328778752,1717785046549,-415.17732812,0.00029,2]
[328778753,1717785046558,-415.17732812,0.00029,2]
[328778754,1717785046567,-415.17732812,0.00029,2]
[328778755,1717785046576,-415.17732812,0.00029,2]
[328778756,1717785046586,-415.17732812,0.00029,2]
[328778757,1717785046595,-415.17732812,0.00029,2]
[328778758,1717785046605,-415.17732812,0.00029,2]
[328778759,1717785046615,-415.17732812,0.00029,2]
[328778760,1717785046629,-415.17732812,0.00029,2]
[328778761,1717785046640,-415.17732812,0.00029,2]
[328778762,1717785046650,-415.17732812,0.00029,2]
[328778763,1717785046659,-415.17732812,0.00029,2]
[328778764,1717785046668,-415.17732812,0.00029,2]
[328778765,1717785046678,-415.17732812,0.00029,2]
[328778766,1717785046687,-415.17732812,0.00029,2]
[328778767,1717785046698,-415.17732812,0.00029,2]
[328778768,1717785046707,-415.17732812,0.00029,2]
[328778769,1717785046716,-415.17732812,0.00029,2]
[328778770,1717785046726,-415.17732812,0.00029,2]
[328778771,1717785046737,-415.17732812,0.00029,2]
[328778772,1717785046748,-415.17732812,0.00029,2]
[328778773,1717785046757,-415.17732812,0.00029,2]
[328778774,1717785046767,-415.17732812,0.00029,2]
[328778775,1717785046776,-415.17732812,0.00029,2]
[328778776,1717785046786,-415.17732812,0.00029,2]
[328778777,1717785046796,-415.17732812,0.00029,2]
[328778778,1717785046805,-415.17732812,0.00029,2]
[328778779,1717785046815,-415.17732812,0.00029,2]
[328778780,1717785046825,-415.17732812,0.00029,2]
[328778781,1717785046835,-415.17732812,0.00029,2]
[328778782,1717785046845,-415.17732812,0.00029,2]
[328778783,1717785046855,-415.17732812,0.00029,2]
[328778784,1717785046865,-415.17732812,0.00029,2]
[328778785,1717785046875,-415.17732812,0.00029,2]
[328778786,1717785046887,-415.17732812,0.00029,2]
[328778787,1717785046896,-415.17732812,0.00029,2]
[328778788,1717785046906,-415.17732812,0.00029,2]
[328778789,1717785046915,-415.17732812,0.00029,2]
[328778790,1717785046925,-415.17732812,0.00029,2]
[328778791,1717785046935,-415.17732812,0.00029,2]
[328778792,1717785046945,-415.17732812,0.00029,2]
[328778793,1717785046955,-415.17732812,0.00029,2]
[328778794,1717785046965,-415.17732812,0.00029,2]
[328778795,1717785046974,-415.17732812,0.00029,2]
[328778796,1717785046984,-415.17732812,0.00029,2]
[328778797,1717785046994,-415.17732812,0.00029,2]
[328778798,1717785047003,-415.17732812,0.00029,2]
[328778799,1717785047013,-415.17732812,0.00029,2]
[328778800,1717785047023,-415.17732812,0.00029,2]
[328778801,1717785047032,-415.17732812,0.00029,2]
[328778802,1717785047042,-415.17732812,0.00029,2]
[328778803,1717785047052,-415.17732812,0.00029,2]
[328778804,1717785047061,-415.17732812,0.00029,2]
[328778805,1717785047071,-415.17732812,0.00029,2]
[328778806,1717785047080,-415.17732812,0.00029,2]
[328778807,1717785047089,-415.17732812,0.00029,2]
[328778808,1717785047099,-415.17732812,0.00029,2]
[328778809,1717785047108,-415.17732812,0.00029,2]
[328778810,1717785047118,-415.17732812,0.00029,2]
[328778811,1717785047132,-415.17732812,0.00029,2]
[328778812,1717785047142,-415.17732812,0.00029,2]
[328778813,1717785047152,-415.17732812,0.00029,2]
[328778814,1717785047161,-415.17732812,0.00029,2]
[328778815,1717785047172,-415.17732812,0.00029,2]
[328778816,1717785047181,-415.17732812,0.00029,2]
[328778817,1717785047191,-415.17732812,0.00029,2]
[328778818,1717785047200,-415.17732812,0.00029,2]
[328778819,1717785047210,-415.17732812,0.00029,2]
[328778820,1717785047220,-415.17732812,0.00029,2]
[328778821,1717785047230,-415.17732812,0.00029,2]
[328778822,1717785047240,-415.17732812,0.00029,2]
[328778823,1717785047249,-415.17732812,0.00029,2]
[328778824,1717785047259,-554.25,0.00029042,2]
[328778825,1717785047268,-4302.931742,0.00029042,2]
[328778826,1717785047278,-417.452101,0.00029042,2]
[328778827,1717785047288,-390.068458,0.00029042,2]
[328778828,1717785047298,-194.252344,0.00029042,2]
[328778829,1717785047307,-1313.011285,0.00029042,2]
[328778830,1717785047429,-328.252821,0.00029042,2]
[328778831,1717785047439,-12915.55149619,0.00029075,2]
[328778832,1717785047449,-6600.0,0.000291,10]
[328778833,1717785047461,-211.43132247,0.00029116,2]
[328778834,1717785047471,-167.0,0.0002914,2]
[328778835,1717785047482,-152.38,0.00029165,2]
[328778836,1717785047492,-625.35569721,0.00029171,2]
[328778837,1717785047502,-49570.5701,0.00029175,2]
[328778838,1717785047512,-526.07,0.00029178,2]
[328778839,1717785047522,-150.0,0.00029178,2]
[328778840,1717785047531,-150.0,0.00029178,2]
[328778841,1717785047541,-353.2,0.00029178,2]
[328778842,1717785047552,-150.0,0.00029178,2]
[328778843,1717785047561,-166.87,0.00029178,2]
[328778844,1717785047571,-422.39,0.00029178,2]
[328778845,1717785047580,-353.13,0.00029178,2]
[328778846,1717785047590,-269.12,0.00029178,2]
[328778847,1717785047600,-150.0,0.00029178,2]
[328778848,1717785047610,-380.78,0.00029178,2]
[328778849,1717785047620,-164.06,0.00029178,2]
[328778850,1717785047632,-150.0,0.00029178,2]
[328778851,1717785047642,-422.3,0.00029178,2]
[328778852,1717785047652,-235.86,0.00029178,2]
[328778853,1717785047661,-8800.0,0.000292,10]
[328778854,1717785047671,-1707.54972663,0.00029238,15]
[328778855,1717785047681,-189.769808,0.00029263,2]
[328778856,1717785047691,-1089.88041119,0.00029274,5]
[328778857,1717785047700,-39852.669,0.00029276,2]
[328778858,1717785047710,-3549.8832,0.00029276,2]
[328778859,1717785047719,-22869.6292,0.00029276,2]
[328778860,1717785047730,-500.0,0.00029276,2]
[328778861,1717785047740,-11000.0,0.000293,10]
[328778862,1717785047750,-155.75987116,0.00029306,2]
[328778863,1717785047760,-151.88555892,0.00029307,2]
[328778864,1717785047770,-207.90705234,0.00029317,2]
[328778865,1717785047780,-166.56,0.00029317,2]
[328778866,1717785047790,-211.43132247,0.00029332,2]
[328778867,1717785047799,-151.37667519,0.00029334,2]
[328778868,1717785047809,-151.0,0.00029345,7]
[328778869,1717785047819,-166.99392,0.00029353,4]
[328778870,1717785047829,-207.90705234,0.00029367,2]
[328778871,1717785047839,-151.88555892,0.00029374,2]
[328778872,1717785047849,-150.0,0.00029385,2]
[328778873,1717785047859,-166.65534303,0.00029389,2]
[328778874,1717785047868,-177.973043,0.00029392,2]
[328778875,1717785047881,-4302.931742,0.00029392,2]
[328778876,1717785047890,-417.452101,0.00029392,2]
[328778877,1717785047899,-390.068458,0.00029392,2]
[328778878,1717785047908,-194.252344,0.00029392,2]
[328778879,1717785047917,-1313.011285,0.00029392,2]
[328778880,1717785047927,-328.252821,0.00029392,2]
[328778881,1717785047936,-151.37667519,0.00029395,2]
[328778882,1717785047945,-155.0,0.00029398,2]
[328778883,1717785047955,-929.09920929,0.00029398,2]
[328778884,1717785047964,-164.93371947,0.000294,2]
[328778885,1717785047974,-2200.0,0.000294,10]
[328778886,1717785047983,-625.35569721,0.00029414,2]
[328778887,1717785047992,-150.0,0.00029421,2]
[328778888,1717785048002,-150.0,0.00029466,2]
[328778889,1717785048011,-226.62818763,0.000295,3]
[328778890,1717785048021,-2200.0,0.000295,10]
[328778891,1717785048030,-211.43132247,0.00029547,2]
[328778892,1717785048040,-500.0,0.00029589,4]
[328778893,1717785048049,-500.0,0.00029589,4]
[328778894,1717785048059,-500.0,0.00029589,4]
[328778895,1717785048068,-500.0,0.00029589,4]
[328778896,1717785048077,-500.0,0.00029589,4]
[328778897,1717785048087,-500.0,0.00029589,4]
[328778898,1717785048097,-500.0,0.00029589,4]
[328778899,1717785048106,-500.0,0.00029589,4]
[328778900,1717785048116,-1208.0,0.00029598,30]
[328778905,1717785048125,-2200.0,0.000296,10]
[328778910,1717785048143,-154.81859682,0.00029607,2]
[328778915,1717785048153,-156.58063653,0.00029607,2]
[328778922,1717785048164,-156.89031967,0.00029612,2]
[328778929,1717785048173,-154.81859682,0.00029619,2]
[328778935,1717785048184,-150.5,0.00029633,15]
[328778942,1717785048194,-944.0,0.00029633,15]
[328778949,1717785048204,-151.37667519,0.00029636,2]
[328778953,1717785048215,-151.88555892,0.00029642,2]
[328778956,1717785048225,-150.5,0.00029643,15]
[328778961,1717785048236,-944.0,0.00029643,15]
[328778966,1717785048246,-230.23996496,0.00029644,2]
[328778971,1717785048256,-156.89031967,0.00029649,2]
[328778975,1717785048267,-150.5,0.00029653,15]
[328778980,1717785048277,-944.0,0.00029653,15]
[328778985,1717785048287,-159.18,0.00029653,2]
[328778990,1717785048297,-152.38,0.00029653,2]
[328778995,1717785048307,-625.35569721,0.00029657,2]
[328779000,1717785048317,-151.88555892,0.00029659,2]
[328779005,1717785048327,-777921.25727434,0.00029663,13]
[328779010,1717785048337,-544761.08356809,0.00029663,7]
[328779015,1717785048346,-349.53989503,0.00029699,4]
[328779019,1717785048356,-11658.8388113,0.000297,2]
[328779023,1717785048368,-163.78330766,0.000297,2]
[328779028,1717785048382,-4000.0,0.000297,2]
[328779033,1717785048391,-2200.0,0.000297,10]